Workbook

Sheet Tarif
E3: Tarif assurance individuelle accidents
B6: Tarif de base
C8: Garanties
B9: Classe | C9: Décès | D9: I.P.P | E9: I.T.T* (DA) | F9: Frais médicaux** (DA)
B10: 1 | C10: =1.4/1000 -> 0.0014 | D10: =1.5/1000 -> 0.0015 | E10: 4 | F10: 45 | J10: 45 | K10: 1500
B11: 2 | C11: =1.65/1000 -> 0.00165 | D11: =1.75/1000 -> 0.00175 | E11: 6 | F11: 65 | J11: 120 | K11: =(J11*K10)/J10 -> 4000
B12: 3 | C12: =2.25/1000 -> 0.00225 | D12: =2.5/1000 -> 0.0025 | E12: 9 | F12: 90
B13: 4 | C13: =2.7/1000 -> 0.0027 | D13: =2.85/1000 -> 0.00285 | E13: 12 | F13: 120
B14: 5 | C14: =3.5/1000 -> 0.0035 | D14: =3.75/1000 -> 0.00375 | E14: 15 | F14: 150
B16: * par dinar garanti à compter du 8ème jour.
B17: ** jusqu'à concurrence de 1500 DA.
B20: Surprimes
C22: Décès | D22: I.P.P | E22: I.T.T | F22: Frais médicaux | G22: Observation
C23: ‰ du capital | D23: % de la prime
A24: (a) | B24: Sport | C24: =0.6/1000 -> 0.0006 | D24: 0.6 | E24: Néant | G24: Les surprimes (a) et © ne se cumulent pas. En cas de cumul prendre la surprime © seulement.
A25: (b) | B25: Aviation | C25: =0.5/1000 -> 0.0005 | D25: 0
A26: © | B26: Moto > 50 cm³ | C26: =0.75/1000 -> 0.00075 | D26: 0.75
B29: Si l'âge de l'assuré varie au jour de la souscription :
B31: Entre 50 et 55 ans | C31: majoration de | D31: 0.2 | E31: de la prime nette
B32: Entre 55 et 60 ans | C32: majoration de | D32: 0.4 | E32: de la prime nette

Sheet Calcul
B2: STAEM
B3: Classe : | C3: Tarification individuelle accidents
B4: 1 | D4: Capital assuré | E4: Taux | F4: Prime
B5: Garanties de Base | C5: Décès | D5: 2000000 | E5: =IF(B4=Tarif!B10,Tarif!C10,IF(B4=Tarif!B11,Tarif!C11,IF(B4=Tarif!B12,Tarif!C12,IF(B4=Tarif!B13,Tarif!C13,Tarif!C14)))) -> 0.0014 | F5: =E5*D5 -> 2800
C6: IPP | D6: 1000000 | E6: =IF(B4=Tarif!B10,Tarif!D10,IF(B4=Tarif!B11,Tarif!D11,IF(B4=Tarif!B12,Tarif!D12,IF(B4=Tarif!B13,Tarif!D13,Tarif!D14)))) -> 0.0015 | F6: =E6*D5 -> 3000
A7: OUI | C7: FMP | D7: 0 | E7: =IF(B4=Tarif!B10,Tarif!F10,IF(B4=Tarif!B11,Tarif!F11,IF(B4=Tarif!B12,Tarif!F12,IF(B4=Tarif!B13,Tarif!F13,Tarif!F14)))) -> 45 | F7: =E7*D7/1500 -> 0
A8: NON | C8: PRIME BASE : | F8: =SUM(F5:F7) -> 5800
A9: 3 | B9: Surprime Décès (/ capital) | C9: Sport | E9: =IF(A9=2,Tarif!C24,0) -> 0 | F9: =$D$5*E9 -> 0
A10: 3 | C10: Aviation | E10: =IF(A10=2,Tarif!C25,0) -> 0 | F10: =$D$5*E10 -> 0
A11: 3 | C11: Moto > 50 cm³ | E11: =IF(A11=2,Tarif!C26,0) -> 0 | F11: =$D$5*E11 -> 0
C12: Prime annuelle : | F12: =SUM(F8:F11) -> 5800
A13: 3 | B13: Surprime IPP (/ prime) | C13: Sport | E13: =IF(A13=2,Tarif!D24,0) -> 0 | F13: =$F$6*E13 -> 0
C14: Aviation
A15: 3 | C15: Moto > 50 cm³ | E15: =IF(A15=2,Tarif!D26,0) -> 0 | F15: =$F$6*E15 -> 0
C16: Prime annuelle : | F16: =SUM(F12:F15) -> 5800
B17: Surprime Âge (/ prime) | C17: Entre 50 et 55 ans | D17: 0.2 | E17: 0 | F17: =F16*E17 -> 0
C18: Entre 56 et 65 ans | D18: 0.4
B19: Prime Nette | F19: =F16+F17 -> 5800
B21: PRIME NETTE PAR GARANTIE | E21: PRIME ANNUELLE | F21: PRIME TEMPORAIRE
B22: Durée d'assurance | C22: annuelle | D22: DC | E22: =(F5+F9+F10+F11)*(1+$E$17) -> 2800 | F22: =E22*$C$23 -> 2800
B23: % de prime : | C23: 1 | D23: IPP | E23: =(F6+F13+F15)*(1+$E$17) -> 3000 | F23: =E23*$C$23 -> 3000
D24: FMP | E24: =F7*(1+$E$17) -> 0 | F24: 0
B25: PRIME NETTE | E25: =SUM(E22:E24) -> 5800 | F25: =SUM(F22:F24) -> 5800

Sheet STAEM
B2: Offre Assurance Individuelle Accidents | E2: STAEM
B4: Tableau des conditions de couverture et tarifaires
B6: Contractante : | C6: Société de Tabac Algéro-Emaratie
B7: Activité : | C7: Production
B8: Effectif assuré : | C8: 900
B9: Age limite | C9: 65 ans
B10: Durée | C10: Annuelle
B12: Garanties | C12: Capitaux garantis
B13: Décès Accidentel: | C13: 1000000
B14: IPP / IPT | C14: 1000000
B15: FMP | C15: 0
B16: Prime nette annuelle | C16: 4750

Sheet Feuil1

Sheet Calcul (2)
B2: STAEM
B3: Classe : | C3: Tarification individuelle accidents
B4: 1 | D4: Capital assuré | E4: Taux | F4: Prime
B5: Garanties de Base | C5: Décès | D5: 2000000 | E5: =IF(B4=Tarif!B10,Tarif!C10,IF(B4=Tarif!B11,Tarif!C11,IF(B4=Tarif!B12,Tarif!C12,IF(B4=Tarif!B13,Tarif!C13,Tarif!C14)))) -> 0.0014 | F5: =E5*D5 -> 2800
C6: IPP | D6: 1000000 | E6: =IF(B4=Tarif!B10,Tarif!D10,IF(B4=Tarif!B11,Tarif!D11,IF(B4=Tarif!B12,Tarif!D12,IF(B4=Tarif!B13,Tarif!D13,Tarif!D14)))) -> 0.0015 | F6: =E6*D5 -> 3000
C7: FMP | D7: 0 | E7: =IF(B4=Tarif!B10,Tarif!F10,IF(B4=Tarif!B11,Tarif!F11,IF(B4=Tarif!B12,Tarif!F12,IF(B4=Tarif!B13,Tarif!F13,Tarif!F14)))) -> 45 | F7: =E7*D7/1500 -> 0
C8: PRIME BASE : | F8: =SUM(F5:F7) -> 5800
